Workbook

Sheet 1. Leíró statisztika
T10: darabszám | V10: =COUNT(data) -> 82
B11: Oktán szám | D11: a) | S11: f) | T11: intervallumok száma | V11: =ROUND(SQRT(COUNT(data)),0) -> 9
B12: 88.5 | D12: átlag | E12: =AVERAGE(data) -> 90.52560976 | H12: e)
B13: 94.7 | D13: tap szór | E13: =_xlfn.STDEV.P(data) -> 2.887433284 | H13: Kvartilisek | K13: IQR | L13: =I17-I15 -> 3.6
B14: 84.3 | D14: kor tap sz | E14: =_xlfn.STDEV.S(data) -> 2.905202272 | H14: 0 | I14: =QUARTILE(data,H14) -> 83.4 | S14: sorszám | T14: alsó | U14: felső | V14: darab | W14: interval | X14: tap. Sfv.
B15: 90.1 | H15: 1 | I15: =QUARTILE(data,H15) -> 88.6 | K15: felfelé | L15: Q3+1,5 IQR | M15: =I17+1.5*L13 -> 97.6 | N15: darab | O15: =COUNTIF(data,">"&M15) -> 2 | S15: 1 | T15: =PERCENTILE(data,(S15-1)/$V$11) -> 83.4 | U15: =PERCENTILE(data,S15/$V$11) -> 87.6 | V15: =COUNTIF(data,"<"&U15)-COUNTIF(data,"<"&T15) -> 9 | W15: =V15/$V$25/(U15-T15) -> 0.02613240418 | X15: =T15 -> 83.4 | Y15: 0
B16: 89 | D16: b) | H16: 2 | I16: =QUARTILE(data,H16) -> 90.4 | K16: extrém felelé | L16: Q3+3 IQR | M16: =I17+3*L13 -> 103 | N16: darab | O16: =COUNTIF(data,">"&M16) -> 0 | S16: 2 | T16: 87.6 | U16: 88.5 | V16: 9 | W16: =V16/$V$25/(U16-T16) -> 0.1219512195 | X16: =T15 -> 83.4 | Y16: =W15 -> 0.02613240418
B17: 89.8 | D17: medián | E17: =MEDIAN(data) -> 90.4 | H17: 3 | I17: =QUARTILE(data,H17) -> 92.2 | K17: lefelé | L17: Q1-1,5 IQR | M17: =I15-1.5*L13 -> 83.2 | N17: darab | O17: =COUNTIF(data,"<"&M17) -> 0 | S17: 3 | T17: 88.5 | U17: 89.3 | V17: 8 | W17: 0.1219512195 | X17: =U15 -> 87.6 | Y17: =W15 -> 0.02613240418
B18: 91.6 | D18: 1. kvartilis | E18: =_xlfn.QUARTILE.INC(data,1) -> 88.6 | H18: 4 | I18: =QUARTILE(data,H18) -> 100.3 | K18: extrém lefelé | L18: Q1-3 IQR | M18: =I15-3*L13 -> 77.8 | N18: darab | O18: =COUNTIF(data,"<"&M18) -> 0 | S18: 4 | T18: 89.3 | U18: 90.1 | V18: 9 | W18: 0.137195122 | X18: =U15 -> 87.6 | Y18: 0
B19: 90.3 | D19: 3. kvartilis | E19: =_xlfn.QUARTILE.INC(data,3) -> 92.2 | S19: 5 | T19: 90.1 | U19: 90.8 | V19: 10 | W19: 0.1742160279 | X19: =T16 -> 87.6 | Y19: =W16 -> 0.1219512195
B20: 90 | S20: 6 | T20: 90.8 | U20: 91.2 | V20: 8 | W20: 0.243902439 | X20: =U16 -> 88.5 | Y20: =W16 -> 0.1219512195
B21: 91.5 | D21: c) | S21: 7 | T21: 91.2 | U21: 92.3 | V21: 10 | W21: 0.110864745 | X21: =U16 -> 88.5 | Y21: 0
B22: 89.9 | D22: Átlag ~ medián, tehát szimmetrikus eloszlás | S22: 8 | T22: 92.3 | U22: 93.4 | V22: 9 | W22: 0.09977827051 | X22: =T17 -> 88.5 | Y22: =W17 -> 0.1219512195
B23: 98.8 | S23: 9 | T23: 93.4 | U23: 100.3 | V23: =COUNTIF(data,"<="&U23)-COUNTIF(data,"<"&T23) -> 10 | W23: 0.01767408978 | X23: =U17 -> 89.3 | Y23: =W17 -> 0.1219512195
B24: 88.3 | D24: d) | X24: =U17 -> 89.3 | Y24: 0
B25: 90.4 | D25: x_min | E25: 0 | U25: szum | V25: =SUM(V15:V23) -> 82 | X25: =T18 -> 89.3 | Y25: =W18 -> 0.137195122
B26: 91.2 | D26: x_max | E26: =COUNT(data) -> 82 | X26: =U18 -> 90.1 | Y26: =W18 -> 0.137195122
B27: 90.6 | X27: =U18 -> 90.1 | Y27: 0
B28: 92.2 | X28: =T19 -> 90.1 | Y28: =W19 -> 0.1742160279
B29: 87.7 | X29: =U19 -> 90.8 | Y29: =W19 -> 0.1742160279
B30: 91.1 | X30: =U19 -> 90.8 | Y30: 0
B31: 86.7 | X31: =T20 -> 90.8 | Y31: =W20 -> 0.243902439
B32: 93.4 | X32: =U20 -> 91.2 | Y32: =W20 -> 0.243902439
B33: 96.1 | X33: =U20 -> 91.2 | Y33: 0
B34: 89.6 | X34: =T21 -> 91.2 | Y34: =W21 -> 0.110864745
B35: 90.4 | X35: =U21 -> 92.3 | Y35: =W21 -> 0.110864745
B36: 91.6 | X36: =U21 -> 92.3 | Y36: 0
B37: 90.7 | X37: =T22 -> 92.3 | Y37: =W22 -> 0.09977827051
B38: 88.6 | X38: =U22 -> 93.4 | Y38: =W22 -> 0.09977827051
B39: 88.3 | X39: =U22 -> 93.4 | Y39: 0
B40: 94.2 | X40: =T23 -> 93.4 | Y40: =W23 -> 0.01767408978
B41: 85.3 | X41: =U23 -> 100.3 | Y41: =W23 -> 0.01767408978
B42: 90.1 | X42: =U23 -> 100.3 | Y42: 0
B43: 89.3
B44: 91.1 | P44: g) | Q44: Szempontok:
B45: 92.2 | Q45: intervallumok száma
B46: 83.4 | Q46: intervallumok szélessége területe
B47: 91 | Q47: átlag vs medián
B48: 88.2 | Q48: kiugró értékek látszana e
B49: 88.5 | Q49: stb stb
B50: 93.3
B51: 87.4
B52: 91.1
B53: 90.5
B54: 100.3
B55: 87.6
B56: 92.7
B57: 87.9
B58: 93
B59: 94.4
B60: 90.4
B61: 91.2
B62: 86.7
B63: 94.2
B64: 90.8
B65: 90.1
B66: 91.8
B67: 88.4
B68: 92.6
B69: 93.7
B70: 96.5
B71: 84.3
B72: 93.2
B73: 88.6
B74: 88.7
B75: 92.7
B76: 89.3
B77: 91
B78: 87.5
B79: 87.8
B80: 88.3
B81: 89.2
B82: 92.3
B83: 88.9
B84: 89.8
B85: 92.7
B86: 93.3
B87: 86.7
B88: 91
B89: 90.9
B90: 89.9
B91: 91.8
B92: 89.7
B93: 92.2

Sheet 2. Leíró statisztika
N13: c) | O13: Adatsorok a kiugró adatok nélkül
B14: Nem permetezett felhők | C14: Permetezett felhők | N14: Nem permetezett felhők | O14: Permetezett felhők
B15: 81.2 | C15: 274.7 | F15: a) | G15: 1. adatsor | H15: 2. adatsor | N15: 81.2 | O15: 274.7
B16: 26.1 | C16: 302.8 | F16: átlag | G16: =AVERAGE(data1) -> 164.5884615 | H16: =AVERAGE(data2) -> 441.9846154 | N16: 26.1 | O16: 302.8
B17: 95 | C17: 242.5 | F17: kor tap szórás | G17: =STDEV(data1) -> 278.4264044 | H17: =STDEV(data2) -> 650.7871712 | N17: 95 | O17: 242.5
B18: 41.1 | C18: 255 | F18: medián | G18: =MEDIAN(data1) -> 44.2 | H18: =MEDIAN(data2) -> 221.6 | N18: 41.1 | O18: 255
B19: 28.6 | C19: 17.5 | N19: 28.6 | O19: 17.5
B20: 21.7 | C20: 115.3 | F20: b) | G20: nem permetezett | J20: permetezett | N20: 21.7 | O20: 115.3
B21: 11.5 | C21: 31.4 | G21: sorszám | H21: kvartilis | J21: sorszám | K21: kvartilis | N21: 11.5 | O21: 31.4
B22: 68.5 | C22: 703.4 | G22: 0 | H22: =QUARTILE(data1,G22) -> 1 | J22: 0 | K22: =QUARTILE(data2,J22) -> 4.1 | N22: 68.5 | O22: 703.4
B23: 345.5 | C23: 334.1 | G23: 1 | H23: =QUARTILE(data1,G23) -> 24.825 | J23: 1 | K23: =QUARTILE(data2,J23) -> 98.125 | N23: 345.5 | O23: 334.1
B24: 321.2 | C24: 1697.8 | G24: 2 | H24: =QUARTILE(data1,G24) -> 44.2 | J24: 2 | K24: =QUARTILE(data2,J24) -> 221.6 | N24: 321.2 | O24: 118.3
B25: 1202.6 | C25: 118.3 | G25: 3 | H25: =QUARTILE(data1,G25) -> 159.2 | J25: 3 | K25: =QUARTILE(data2,J25) -> 406.025 | N25: 1 | O25: 198.6
B26: 1 | C26: 198.6 | G26: 4 | H26: =QUARTILE(data1,G26) -> 1202.6 | J26: 4 | K26: =QUARTILE(data2,J26) -> 2745.6 | N26: 4.9 | O26: 129.6
B27: 4.9 | C27: 129.6 | N27: 163 | O27: 274.7
B28: 163 | C28: 274.7 | G28: IQR | H28: =H25-H23 -> 134.375 | K28: =K25-K23 -> 307.9 | N28: 244.3 | O28: 119 | R28: nem permetezett | U28: permetezett
B29: 372.4 | C29: 119 | F29: lefelé kiugró nincs az ábra alapján | N29: 47.3 | O29: 7.7 | R29: sorszám | S29: kvartilis | U29: sorszám | V29: kvartilis
B30: 244.3 | C30: 1656 | F30: felfelé kiugró határ | H30: =H25+1.5*H28 -> 360.7625 | K30: =K25+1.5*K28 -> 867.875 | N30: 87 | O30: 430 | R30: 0 | S30: =QUARTILE(data4,R30) -> 1 | U30: 0 | V30: =QUARTILE(data5,U30) -> 4.1
B31: 47.3 | C31: 7.7 | G31: db | H31: =COUNTIF(data1,">"&H30) -> 3 | K31: =COUNTIF(data2,">"&K30) -> 4 | N31: 26.3 | O31: 40.6 | R31: 1 | S31: =QUARTILE(data4,R31) -> 23.05 | U31: 1 | V31: =QUARTILE(data5,U31) -> 53.55
B32: 87 | C32: 430 | F32: extrém felfelé határ | H32: =H25+3*H28 -> 562.325 | K32: =K25+3*K28 -> 1329.725 | N32: 24.4 | O32: 92.4 | R32: 2 | S32: =QUARTILE(data4,R32) -> 36.6 | U32: 2 | V32: =QUARTILE(data5,U32) -> 164.1
B33: 26.3 | C33: 40.6 | H33: =COUNTIF(data1,">"&H32) -> 2 | K33: =COUNTIF(data2,">"&K32) -> 3 | N33: 4.9 | O33: 200.7 | R33: 3 | S33: =QUARTILE(data4,R33) -> 91 | U33: 3 | V33: =QUARTILE(data5,U33) -> 274.7
B34: 24.4 | C34: 92.4 | N34: 36.6 | O34: 32.7 | R34: 4 | S34: =QUARTILE(data4,R34) -> 345.5 | U34: 4 | V34: =QUARTILE(data5,U34) -> 703.4
B35: 830.1 | C35: 200.7 | N35: 147.8 | O35: 4.1
B36: 4.9 | C36: 32.7 | N36: 17.3 | O36: 489.1 | R36: IQR | S36: =S33-S31 -> 67.95 | V36: =V33-V31 -> 221.15
B37: 36.6 | C37: 4.1 | N37: 29 | Q37: lefelé kiugró nincs az ábra alapján
B38: 147.8 | C38: 978 | Q38: felfelé kiugró határ | S38: =S33+1.5*S36 -> 192.925 | V38: =V33+1.5*V36 -> 606.425
B39: 17.3 | C39: 489.1 | R39: db | S39: =COUNTIF(data4,">"&S38) -> 3 | V39: =COUNTIF(data5,">"&V38) -> 1
B40: 29 | C40: 2745.6 | Q40: extrém felfelé határ | S40: =S33+3*S36 -> 294.85 | V40: =V33+3*V36 -> 938.15
S41: =COUNTIF(data4,">"&S40) -> 2 | V41: =COUNTIF(data5,">"&V40) -> 0

Sheet 3. Leíró statisztika
R2: Pontozás (a javító tölti ki): | U2: 0
M3: A számításai alapján töltse ki!
M4: Átlag (1p) | Q4: =AVERAGE(C13:C69) -> 815.419614
M5: Korrigált tapasztalati szórás (1p) | Q5: =_xlfn.STDEV.S(C13:C69) -> 199.7738237
M6: Medián (1p) | Q6: =MEDIAN(C13:C69) -> 793.6
M7: Hisztogram segítségével (3p) | Q7: =Q13 -> 0.2525678513 | S7: =Q7*COUNT($C$13:$C$69) -> 14.39636752
M8: Pontosan (3p) | Q8: =Q14 -> 0.2456140351 | S8: =Q8*COUNT($C$13:$C$69) -> 14
M9: Mivel vizsgálja a kapcsolatot? (2p) | Q9: korrelációs eh.
M10: Mekkora kiszámolt érték? (2p) | Q10: =CORREL(C13:C69,D13:D69) -> -0.3241883755
M11: Van-e lineáris kapcsolat? (2p) | Q11: nincs
B12: Év sorszáma | C12: Levélpostai küldemény millió db. | D12: Gazdaságilag aktív népesség száma ezer fő | F12: Intervallum sorszáma | G12: alsó határ | H12: felső határ | I12: gyakoriság | J12: hisztogram magasság
B13: 1 | C13: 552.1 | D13: 4735 | F13: 1 | G13: 495.4 | H13: 616 | I13: 7 | J13: 0.001019145374 | M13: alsó | N13: 850 | P13: hisztogramból | Q13: =((H17-N13)*J17+(H18-G18)*J18+(N14-G19)*J19) -> 0.2525678513
B14: 2 | C14: 558.7 | D14: 4626 | F14: 2 | G14: 616 | H14: 693 | I14: 7 | J14: 0.001599049708 | M14: felső | N14: 1000 | P14: pontosan | Q14: =(COUNTIF(C13:C69,"<"&N14)-COUNTIF(C13:C69,"<"&N13))/COUNT(C13:C69) -> 0.2456140351
B15: 3 | C15: 495.4 | D15: 4544 | F15: 3 | G15: 693 | H15: 745 | I15: 7 | J15: 0.002366223845
B16: 4 | C16: 529 | D16: 4569 | F16: 4 | G16: 745 | H16: 794 | I16: 7 | J16: 0.002506265664
B17: 5 | C17: 505.4 | D17: 4653 | F17: 5 | G17: 794 | H17: 857 | I17: 7 | J17: 0.001949317739
B18: 6 | C18: 559.5 | D18: 4649 | F18: 6 | G18: 857 | H18: 882 | I18: 7 | J18: 0.004912280702
B19: 7 | C19: 586.1 | D19: 4666 | F19: 7 | G19: 882 | H19: 1006 | I19: 7 | J19: 0.0009840305893
B20: 8 | C20: 615.9 | D20: 4710 | F20: 8 | G20: 1006 | H20: 1302 | I20: 8 | J20: 0.0004747999905
B21: 9 | C21: 632.8 | D21: 4802
B22: 10 | C22: 638.2 | D22: 4979
B23: 11 | C23: 664.2 | D23: 5127
B24: 12 | C24: 709 | D24: 5440
B25: 13 | C25: 744.3 | D25: 5491
B26: 14 | C26: 756.1 | D26: 5531
B27: 15 | C27: 772.2 | D27: 5563
B28: 16 | C28: 793.6 | D28: 5634
B29: 17 | C29: 823.5 | D29: 5679
B30: 18 | C30: 875.1 | D30: 5777
B31: 19 | C31: 875.6 | D31: 5742
B32: 20 | C32: 768.3 | D32: 5736
B33: 21 | C33: 743.7 | D33: 5470
B34: 22 | C34: 735.7 | D34: 5447
B35: 23 | C35: 751 | D35: 5437
B36: 24 | C36: 798.2 | D36: 5413
B37: 25 | C37: 831 | D37: 5392
B38: 26 | C38: 872.3 | D38: 5373
B39: 27 | C39: 870.4 | D39: 5361
B40: 28 | C40: 744.6 | D40: 5371
B41: 29 | C41: 729.1 | D41: 5284
B42: 30 | C42: 781.4 | D42: 5216
B43: 31 | C43: 885.1 | D43: 5108
B44: 32 | C44: 901.3 | D44: 5022
B45: 33 | C45: 945.9 | D45: 4510.2
B46: 34 | C46: 869.1 | D46: 4435.9
B47: 35 | C47: 847.1 | D47: 4250.6
B48: 36 | C48: 777.4 | D48: 4132.05
B49: 37 | C49: 692.7 | D49: 4063.65
B50: 38 | C50: 847 | D50: 4028.25
B51: 39 | C51: 1006.4 | D51: 4008.15
B52: 40 | C52: 1074 | D52: 4076.65
B53: 41 | C53: 1183.1 | D53: 4115.65
B54: 42 | C54: 1234.6 | D54: 4145.85
B55: 43 | C55: 1252.4 | D55: 4096.45
B56: 44 | C56: 1291.2 | D56: 4138.7
B57: 45 | C57: 1295.6 | D57: 4173.95
B58: 46 | C58: 1302 | D58: 4170.25
B59: 47 | C59: 961.1 | D59: 4222.66145
B60: 48 | C60: 906.5 | D60: 4234.918375
B61: 49 | C61: 889.1 | D61: 4174.941435
B62: 50 | C62: 881.6 | D62: 4159.94939
B63: 51 | C63: 868 | D63: 4176.549635
B64: 52 | C64: 856.6 | D64: 4191.590285
B65: 53 | C65: 797.818 | D65: 4244.919585
B66: 54 | C66: 693.7 | D66: 4295.999005
B67: 55 | C67: 653.4 | D67: 4385.00353
B68: 56 | C68: 621.6 | D68: 4464.48
B69: 57 | C69: 632.2 | D69: 4537.504833

Sheet Rangkorrel.
E6: Rang korreláció páronként | I6: Kendall
B7: 1. pontozó | C7: 2. pontozó | D7: 3. pontozó | E7: d^2_(1-2) | F7: d^2_(1-3) | G7: d^2_(2-3) | J7: R_i
A8: Nagymihály Balázs & Szalai Ágnes | B8: 1 | C8: 1 | D8: 3 | E8: =($B8-C8)^2 -> 0 | F8: =($B8-D8)^2 -> 4 | G8: =($C8-D8)^2 -> 4 | J8: =SUM(B8:D8) -> 5
A9: Zilahy Szabolcs György & Mikes Anna | B9: 3 | C9: 4 | D9: 2 | E9: =($B9-C9)^2 -> 1 | F9: 1 | G9: =($C9-D9)^2 -> 4 | J9: 9
A10: Süttő Roland & Tombácz Anikó | B10: 6 | C10: 3 | D10: 1 | E10: 9 | F10: 25 | G10: 4 | J10: 10
A11: Kovács László & Kelemen Erika | B11: 4 | C11: 2 | D11: 6 | E11: 4 | F11: 4 | G11: 16 | J11: 12
A12: Lehoczky György & Czina Boglárka | B12: 2 | C12: 5 | D12: 4 | E12: 9 | F12: 4 | G12: 1 | J12: 11
A13: Vas Zsolt & Kiss-Nemes Veronika | B13: 5 | C13: 6 | D13: 5 | E13: 1 | F13: 0 | G13: 1 | J13: 16
I14: átlag | J14: =AVERAGE(J8:J13) -> 10.5
D15: rang-korr: | E15: =1-6*SUM(E8:E13)/COUNT(B8:B13)/(COUNT(B8:B13)^2-1) -> 0.3142857143 | F15: =1-6*SUM(F8:F13)/COUNT(C8:C13)/(COUNT(C8:C13)^2-1) -> -0.08571428571 | G15: =1-6*SUM(G8:G13)/COUNT(D8:D13)/(COUNT(D8:D13)^2-1) -> 0.1428571429 | I15: szum(R_i-R_átl) | J15: =DEVSQ(J8:J13) -> 65.5
I17: kendall W | J17: =12*J15/COUNT(B8:D8)^2/COUNT(B8:B13)/(COUNT(B8:B13)^2-1) -> 0.4158730159
D19: Minden megvilágításból az a következtetés vonható le, hogy a zsűri véleménye nem igazán egybehangzó.

Sheet 1. LNM
A10: Karát | B10: Eladási ár
A11: 0.3 | B11: 1302 | D11: a)
A12: 0.3 | B12: 1510 | D12: korreláció | E12: =CORREL(A11:A50,B11:B50) -> 0.8858004069
A13: 0.3 | B13: 1510
A14: 0.3 | B14: 1260
A15: 0.31 | B15: 1641 | D15: A megoldás le kell vezetni! A trendvonal illesztés ellenőrzésre szolgál.
A16: 0.31 | B16: 1555
A17: 0.31 | B17: 1427
A18: 0.31 | B18: 1427
A19: 0.31 | B19: 1126
A20: 0.31 | B20: 1126
A21: 0.32 | B21: 1468
A22: 0.32 | B22: 1202
A23: 0.36 | B23: 1635
A24: 0.36 | B24: 1485
A25: 0.37 | B25: 1420
A26: 0.37 | B26: 1420
A27: 0.4 | B27: 1911
A28: 0.4 | B28: 1525
A29: 0.41 | B29: 1956
A30: 0.43 | B30: 1747
A31: 0.33 | B31: 1367
A32: 0.33 | B32: 1098
A33: 0.34 | B33: 1693
A34: 0.34 | B34: 1551
A35: 0.34 | B35: 1410
A36: 0.34 | B36: 1269
A37: 0.34 | B37: 1316
A38: 0.34 | B38: 1222
A39: 0.35 | B39: 1738
A40: 0.35 | B40: 1593
A41: 0.35 | B41: 1447
A42: 0.35 | B42: 1255
A43: 0.45 | B43: 1572
A44: 0.46 | B44: 2942
A45: 0.48 | B45: 2532
A46: 0.5 | B46: 3501
A47: 0.5 | B47: 3501
A48: 0.5 | B48: 3501
A49: 0.5 | B49: 3293
A50: 0.5 | B50: 3016

Sheet 2. LNM
B7: x | C7: y | D7: a) | E7: yi/(xi+1) | F7: 1/(xi+1)^2 | G7: f(xi) | H7: (f(xi)-yi))^2 | J7: b) | K7: e^(-xi) | L7: e^(-xi)*e^(-xi) | M7: yi*e^(-xi) | N7: g(xi) | O7: (g(xi)-yi))^2
B8: 0.005 | C8: 12.87389597 | E8: =C8/(B8+1) -> 12.80984673 | F8: =1/(B8+1)^2 -> 0.9900745031 | G8: =$E$31/(B8+1) -> 12.3031964 | H8: =(G8-C8)^2 -> 0.3256979965 | K8: =EXP(-B8) -> 0.9950124792 | L8: =K8*K8 -> 0.9900498337 | M8: =C8*K8 -> 12.80968714 | N8: =$L$31*EXP(-B8) -> 12.70813288 | O8: =(N8-C8)^2 -> 0.02747740106
B9: =B8*1.5 -> 0.0075 | C9: 12.91797932 | E9: 12.82181571 | F9: 0.9851670782 | G9: 12.27266737 | H9: 0.4164275111 | K9: 0.9925280548 | L9: 0.9851119396 | M9: 12.82145689 | N9: 12.67640223 | O9: 0.0583594939
B10: 0.01125 | C10: 11.92575516 | E10: 11.79308297 | F10: 0.9778740712 | G10: 12.22715687 | H10: 0.09084299015 | K10: 0.9888130446 | L10: 0.9777512372 | M10: 11.79234227 | N10: 12.62895474 | O10: 0.4944896509
B11: 0.016875 | C11: 12.56873773 | E11: 12.36016003 | F11: 0.9670854726 | G11: 12.15952047 | H11: 0.1674587645 | K11: 0.9832665853 | L11: 0.9668131777 | M11: 12.35841983 | N11: 12.55811629 | O11: 0.0001128150597
B12: 0.0253125 | C12: 11.99571675 | E12: 11.69957135 | F12: 0.9512342869 | G12: 12.05945737 | H12: 0.004062866214 | K12: 0.9750051753 | L12: 0.9506350919 | M12: 11.69588591 | N12: 12.45260294 | O12: 0.2087449929
B13: 0.03796875 | C13: 12.25015502 | E13: 11.80204609 | F13: 0.9281783691 | G13: 11.91241295 | H13: 0.1140697079 | K13: 0.9627430261 | L13: 0.9268741344 | M13: 11.79375132 | N13: 12.29599282 | O13: 0.002101103941
B14: 0.056953125 | C14: 12.29337668 | E14: 11.63095732 | F14: 0.895135015 | G14: 11.69844914 | H14: 0.353938777 | K14: 0.9446383483 | L14: 0.892341609 | M14: 11.61279504 | N14: 12.06476291 | O14: 0.05226425818
B15: 0.0854296875 | C15: 11.56663887 | E15: 10.6562765 | F15: 0.8487828746 | G15: 11.39153694 | H15: 0.03066068796 | K15: 0.9181176959 | L15: 0.8429401036 | M15: 10.61953583 | N15: 11.72604557 | O15: 0.02541049579
B16: 0.1281445313 | C16: 10.80165179 | E16: 9.574705627 | F16: 0.7857248976 | G16: 10.96022011 | H16: 0.02514391213 | K16: 0.879726222 | L16: 0.7739182257 | M16: 9.502496322 | N16: 11.23571609 | O16: 0.1884118189
B17: 0.1922167969 | C17: 10.69712293 | E17: 8.972464538 | F17: 0.7035411877 | G17: 10.37119458 | H17: 0.1062292916 | K17: 0.8251279639 | L17: 0.6808361569 | M17: 8.826495265 | N17: 10.53839628 | O17: 0.02519415056
B18: 0.2883251953 | C18: 9.787811421 | E18: 7.597314293 | F18: 0.6024888299 | G18: 9.597508785 | H18: 0.03621509318 | K18: 0.7495178129 | L18: 0.5617769519 | M18: 7.336139009 | N18: 9.572716082 | O18: 0.04626600472
B19: 0.432487793 | C19: 8.225708111 | E19: 5.742253548 | F19: 0.4873243817 | G19: 8.631635425 | H19: 0.1647769841 | K19: 0.6488927741 | L19: 0.4210618323 | M19: 5.337602556 | N19: 8.287549925 | O19: 0.003824409963
B20: 0.6487316895 | C20: 7.23003183 | E20: 4.385208264 | F20: 0.3678747917 | G20: 7.499529765 | H20: 0.07262913685 | K20: 0.522708313 | L20: 0.2732239805 | M20: 3.779197741 | N20: 6.675943103 | O20: 0.3070143176
B21: 0.9730975342 | C21: 5.435061821 | E21: 2.754583454 | F21: 0.2568637936 | G21: 6.266650363 | H21: 0.6915395047 | K21: 0.3779106322 | L21: 0.1428164459 | M21: 2.053967648 | N21: 4.826611354 | O21: 0.3702119701
B22: 1.459646301 | C22: 3.654355829 | E22: 1.485724117 | F22: 0.1652930831 | G22: 5.027028631 | H22: 1.884230623 | K22: 0.2323184309 | L22: 0.05397185335 | M22: 0.8489742122 | N22: 2.967132124 | O22: 0.4722764209
B23: 2.189469452 | C23: 2.404814634 | E23: 0.7539857867 | F23: 0.09830217028 | G23: 3.876730148 | H23: 2.16653528 | K23: 0.1119761416 | L23: 0.01253865629 | M23: 0.2692818639 | N23: 1.430140542 | O23: 0.949989585
B24: 3.284204178 | C24: 1.422239675 | E24: 0.3319728975 | F24: 0.05448283266 | G24: 2.886116503 | H24: 2.142935369 | K24: 0.037470393 | L24: 0.001404030352 | M24: 0.05329187954 | N24: 0.4785655891 | O24: 0.8905207796
B25: 4.926306267 | C25: 0.9013931134 | E25: 0.1521003257 | F25: 0.02847290746 | G25: 2.086411303 | H25: 1.40426811 | K25: 0.007253245415 | L25: 5.260956905e-05 | M25: 0.006538025467 | N25: 0.09263723668 | O25: 0.6540860681
B26: 7.3894594 | C26: 0.6210442109 | E26: 0.07402672583 | F26: 0.0142079705 | G26: 1.473838991 | H26: 0.7272589374 | K26: 0.0006177298079 | L26: 3.815901156e-07 | M26: 0.0003836375211 | N26: 0.007889541735 | O26: 0.3759586483
B27: 11.0841891 | C27: 0.4246917253 | E27: 0.0351444124 | F27: 0.006848019282 | G27: 1.023214076 | H27: 0.3582290039 | K27: 1.535316217e-05 | L27: 2.357195888e-10 | M27: 6.520360932e-06 | N27: 0.0001960880181 | O27: 0.180196546
E28: =SUM(E8:E27) -> 137.4332407 | F28: =SUM(F8:F27) -> 11.11495654 | L28: =SUM(L8:L27) -> 10.45411825 | M28: =SUM(M8:M27) -> 133.5182489
B29: tap szór^2 | C29: =_xlfn.STDEV.P(C8:C27)^2 -> 21.53173607
B30: darab | C30: =COUNT(C8:C27) -> 20
D31: a | E31: =E28/F28 -> 12.36471238 | G31: R2 | H31: =1-SUM(H8:H27)/C30/C29 -> 0.9737987905 | K31: b | L31: =M28/L28 -> 12.77183266 | N31: R2 | O31: =1-SUM(O8:O27)/C30/C29 -> 0.9876161613

Sheet 1. Konf. int
B8: n | C8: 20
B9: átlag | C9: 1014 | D9: óra
B10: σ | C10: 25 | D10: óra
B12: p | C12: 0.95
B13: (p+1)/2 | C13: =(C12+1)/2 -> 0.975
B15: lambda | C15: =_xlfn.NORM.S.INV(C13) -> 1.959963985
B17: a | C17: =C15*C10/SQRT(C8) -> 10.95653176 | E17: mérés eredménye: | G17: 1014+-10,96 óra, p = 95% esetén

Sheet 2. Konf. int
B10: Nyomó-szilárdság [MPa]
B11: 22.16 | D11: átlag | E11: =AVERAGE(adat) -> 22.59916667
B12: 22.25 | D12: kor t sz | E12: =STDEV(adat) -> 0.3556928791
B13: 23.18 | D13: n | E13: =COUNT(adat) -> 12
B14: 22.37 | D14: p | E14: 0.95
B15: 23.01
B16: 22.55 | D16: lambda_st | E16: =_xlfn.T.INV.2T(1-E14,E13-1) -> 2.20098516
B17: 22.49 | D17: a | E17: =E16*E12/SQRT(E13) -> 0.2259964734
B18: 22.81
B19: 22.75 | D19: eredmény | E19: 22,599 +- 0,226 Mpa, p = 95% esetén
B20: 22.04
B21: 22.63
B22: 22.95

Sheet Hibaterjedés
L4: σ_η | M4: =M16 -> 0.04195499422
L5: η | M5: =M13 -> 1.323027683
L6: h_η | M6: =M15 -> 0.001005609734
B13: C | C13: =PI()/3/10000 -> 0.0001047197551 | L13: éta | M13: =C13*C15*C23^(C26)/E19/C27 -> 1.323027683
B15: P | C15: 500 | D15: W | H15: =C18*C17/C15 -> 0.03 | I15: =H15^2 -> 0.0009 | L15: h | M15: =SUM(I15:I30) -> 0.001005609734
B16: 2*sigma | C16: 30 | I16: =H16^2 -> 0 | L16: szigma | M16: =SQRT(M15)*M13 -> 0.04195499422
B17: sigma | C17: =C16/2 -> 15 | I17: 0
B18: k | C18: 1 | I18: 0
B19: Q | C19: 110 | D19: l/perc | E19: =C19/10^3/60 -> 0.001833333333 | F19: m^3/s | H19: =C22*C21/C19 -> -0.002272727273 | I19: 5.165289256e-06
B20: 2*sigma | C20: 0.5 | E20: =C20/10^3/60 -> 8.333333333e-06 | I20: 0
B21: sigma | C21: =C20/2 -> 0.25 | E21: 4.166666667e-06 | I21: 0
B22: k | C22: -1 | I22: 0
B23: n | C23: 1500 | D23: 1/min | H23: =C26*C25/C23 -> -0.0006666666667 | I23: 4.444444444e-07
B24: 2*sigma | C24: 10 | I24: 0
B25: sigma | C25: =10/2 -> 5 | I25: 0
B26: k | C26: =-1/5 -> -0.2 | I26: 0
B27: p | C27: 5 | D27: bar | H27: =C30*C29/C27 -> -0.01 | I27: 0.0001
B28: 2*sigma | C28: 0.1 | I28: 0
B29: sigma | C29: =C28/2 -> 0.05 | I29: 0
B30: k | C30: -1 | I30: 0

Sheet 1. teszt
C8: Relatív gyakoriság
C9: a) a kedvező és kedvezőtlen esetek számának hányadosa;
B10: x | C10: b) a kedvező és az összes esetek számának hányadosa;
C11: c) értéke lehet pozitív és negatív is.;
C12: d) értéke mindig független a megfigyelések számától;
C14: Tapasztalati sűrűségfüggvény
C15: a) olyan lépcsősfüggvény, amelynek értéke a legnagyobb mintaelem felett egységnyi;
C16: b) olyan lépcsősfüggvény, amely értéke minden mintaelemnél növekszik;
C17: c) értéke lehet pozitív és negatív is;
B18: x | C18: d) alatt lévő terület egységnyi.
C20: Mérés és mérési hibák
C21: a) a rendszeres hiba nulla várható értékű, egységnyi szórású valószínűségi változó;
B22: x | C22: b) a véletlen hiba nulla várható értékű, normális eloszlású valószínűségi változó;
C23: c) közvetlen mérés eredményét vagy csak rendszeres vagy csak véletlen mérési hiba terhelheti;
C24: d) a nullponthiba véletlen hiba.
C26: Rangkorreláció
B27: x | C27: a) a zsűritagok által készített rangsorok közötti korrelációs együttható;
C28: b) értéke csak 0 és 1 között változhat;
C29: c) csak akkor számolható, ha a zsűritagok és a versenyzők száma megegyezik;
C30: d) értéke egyhez tart, ha a versenyzők száma minden határon túl növekszik.
C32: 5. Kendall féle konkordancia együttható
C33: a) értéke kiszámítható a rangkorreláció értékéből;
C34: b) értéke 0 és -1 között is lehet;
C35: c) csak akkor számolható, ha a zsűritagok és a versenyzők száma megegyezik;
B36: x | C36: d) értéke egységnyi, ha a zsűri minden tagja ugyan olyan rangsort állít fel.

Sheet 2. Teszt
C8: A konfidencia intervallum
C9: a) sugara egyenlő a várható érték és az átlag különbségével;
C10: b) sugara egyenlő a valószínűségi változó szórásával;
C11: c) közepe a várható érték, és p<1 valószínűséggel tartalmazza az átlagot;
B12: x | C12: d) közepe az átlag, és p<1 valószínűséggel tartalmazza a várható értéket.
C14: Wald módszere
B15: x | C15: a) két hibával terhelt változó közötti lineáris kapcsolat együtthatóinak becslésére szolgál;
C16: b) egy megfigyelés-sorozat átlagának becslésére szolgál;
C17: c) alkalmas a megfigyelésekhez illeszkedő másodfokú polinom együtthatóinak meghatározására;
C18: d) csak akkor alkalmazható, ha az egyik változó konstans;
C20: A hiba terjedés összefüggése megmutatja
D21: a) hogy hogyan terjed a hiba az egyik mérésről a másikra;
D22: b) a rendszeres hiba terjedését;
B23: x | D23: c) a véletlen hiba terjedését;
D24: d) hogy a véletlen hibából rendszeres hiba lesz.
C26: Rendszeres és véletlen hiba
B27: x | D27: a) rendszeres hiba minden mérési eredményt terhel;
D28: b) véletlen hiba miden mérési eredményt terhel;
D29: c) a véletlen hiba értéke pontosan meghatározható;
D30: d) a rendszeres hiba értéke nem függhet a mért értéktől;
C32: Az F(x) eloszlásfüggvény tulajdonságai
D33: a) az eloszlásfüggvény lépcsős függvény;
D34: b) F(x) → 0, ha x→¥
D35: c) F(x) → ¥, ha x→0
B36: x | D36: d) F(x) → 1, ha x→¥

Sheet 1. Eloszlásos
I6: lambda | J6: =1/1200 -> 0.0008333333333
F10: A számításai alapján töltse ki!
B11: Mekkora annak a valószínűsége, hogy egy kiválasztott égő 3000 órán belül megy tönkre? | F11: =_xlfn.EXPON.DIST(3000,J6,TRUE) -> 0.9179150014
H13: 0.9
B14: Mekkora annak a valószínűsége, hogy egy kiválasztott égő 3000 órán belül még nem megy tönkre? | F14: =1-_xlfn.EXPON.DIST(3000,J6,TRUE) -> 0.08208499862
H16: 0.08
B17: Mekkora annak a valószínűsége, hogy egy kiválasztott égő 1500 és 3000 órán belül megy tönkre? | F17: =_xlfn.EXPON.DIST(3000,J6,TRUE)-_xlfn.EXPON.DIST(1500,J6,TRUE) -> 0.2044197982
H19: 0.2
B20: Válasszunk ki véletlen szerűen 5 égőt. Mennyi annak a valószínűsége, hogy ennek az 5 égőnek az átlagos tönkremeneteli ideje kisebb, mint 2500 óra? | F20: =_xlfn.EXPON.DIST(2500,J6,TRUE) -> 0.8754855286
H23: 0.88
B24: Mekkora a tönkremenetli idő szórása? | F24: 1200 óra
H25: uaz, mint a vé.

Sheet 2. Eloszlásos
F6: A számításai alapján töltse ki!
B7: Mekkora annak a valószínűsége, hogy 5 lehetséges színből az emberek a kedvencüknek jelölnek 1 színt, ha a színek közötti megoszlás bizonyítottan egyenletes eloszlású? | F7: =1/5 -> 0.2
B9: Mekkora annak a valószínűsége, hogy egy N(0,1) eloszlásból származó valószínűségi változó értéke kisebb, mint 0,8? | F9: =_xlfn.NORM.S.DIST(0.8,1) -> 0.7881446014
B12: Mekkora annak a valószínűsége, hogy egy N(0,1) eloszlásból származó valószínűségi változó értéke nagyobb, mint 0,8? | F12: 1-I10
B15: Az x= 1;2;3 és y=-3;-5;-7 pontsorra LNM segítségével egyenest illesztünk. Mekkora lesz a determinációs együttható? | F15: 1 | I15: 1 | J15: -3
I16: 2 | J16: -5
I17: 3 | J17: -7
I18: R2 = 1
B19: Az η valószínűségi változó szórásnégyzete 12. Mekkora lesz a ξ=a*η valószínűségi változó szórásnégyzete D2(ξ), ha a=3? | F19: =9*12 -> 108
